[Event "Early-Titled-Tuesday-Blitz-February-06-2024"]
[Site "Chess.com"]
[Date "2024.02.06"]
[Round "3"]
[White "Zavgorodniy_Sergiy"]
[Black "abhidabhi"]
[Result "0-1"]
[WhiteElo "2610"]
[BlackElo "2910"]
[TimeControl "180+1"]
[EndTime "8:27:16 PST"]
[Termination "abhidabhi won by resignation"]

1. e4 {[%clk 0:03:00.9]} 1... c5 {[%clk 0:02:59.1]} 2. Nf3 {[%clk 0:02:57.4]}
2... Nc6 {[%clk 0:02:59.6]} 3. Bb5 {[%clk 0:02:55.6]} 3... g6 {[%clk 0:02:58.1]}
4. O-O {[%clk 0:02:55.1]} 4... Bg7 {[%clk 0:02:56.5]} 5. c3 {[%clk 0:02:55.2]}
5... a6 {[%clk 0:02:56.9]} 6. Bxc6 {[%clk 0:02:53.4]} 6... dxc6 {[%clk
0:02:57.8]} 7. d4 {[%clk 0:02:53.7]} 7... cxd4 {[%clk 0:02:58.2]} 8. cxd4 {[%clk
0:02:54.6]} 8... Bg4 {[%clk 0:02:58.7]} 9. Be3 {[%clk 0:02:23.4]} 9... e5 {[%clk
0:02:58.7]} 10. dxe5 {[%clk 0:02:18.9]} 10... Qxd1 {[%clk 0:02:58.1]} 11. Rxd1
{[%clk 0:02:19.8]} 11... Bxf3 {[%clk 0:02:55.9]} 12. gxf3 {[%clk 0:02:19.1]}
12... Bxe5 {[%clk 0:02:56.6]} 13. Nd2 {[%clk 0:02:14.4]} 13... b5 {[%clk
0:02:43.2]} 14. Rac1 {[%clk 0:02:08.5]} 14... Ne7 {[%clk 0:02:24.8]} 15. Nb3
{[%clk 0:01:53.8]} 15... Bxb2 {[%clk 0:02:17.2]} 16. Rc2 {[%clk 0:01:54.1]}
16... Bg7 {[%clk 0:02:17.1]} 17. Na5 {[%clk 0:01:46.7]} 17... O-O {[%clk
0:01:52.4]} 18. Rd7 {[%clk 0:01:38.9]} 18... Rfe8 {[%clk 0:01:49.9]} 19. Bc5
{[%clk 0:01:33.2]} 19... Bf8 {[%clk 0:01:45.1]} 20. Nb7 {[%clk 0:01:03.3]} 20...
a5 {[%clk 0:01:32.7]} 21. f4 {[%clk 0:01:00.5]} 21... a4 {[%clk 0:01:30.8]} 22.
f5 {[%clk 0:00:51.2]} 22... gxf5 {[%clk 0:01:28]} 23. Nd6 {[%clk 0:00:48.8]}
23... Red8 {[%clk 0:01:27.9]} 24. Rxd8 {[%clk 0:00:45.4]} 24... Rxd8 {[%clk
0:01:27.8]} 25. exf5 {[%clk 0:00:43.4]} 25... Nd5 {[%clk 0:01:23.6]} 26. Nb7
{[%clk 0:00:39.8]} 26... Rd7 {[%clk 0:00:53.3]} 27. Bxf8 {[%clk 0:00:34.4]}
27... Kxf8 {[%clk 0:00:51.8]} 28. Na5 {[%clk 0:00:32.7]} 28... Nb4 {[%clk
0:00:51.8]} 29. Rb2 {[%clk 0:00:33]} 29... Ra7 {[%clk 0:00:47.8]} 30. Rxb4
{[%clk 0:00:16.7]} 30... Rxa5 {[%clk 0:00:47.9]} 31. f6 {[%clk 0:00:15.7]} 31...
c5 {[%clk 0:00:46.5]} 32. Rh4 {[%clk 0:00:15.5]} 32... b4 {[%clk 0:00:43]} 33.
Rxh7 {[%clk 0:00:15.2]} 33... Ke8 {[%clk 0:00:43.3]} 0-1

[Event "Early-Titled-Tuesday-Blitz-February-06-2024"]
[Site "Chess.com"]
[Date "2024.02.06"]
[Round "3"]
[White "nikitadovbnya2008"]
[Black "angelgab3"]
[Result "1-0"]
[WhiteElo "2274"]
[BlackElo "2764"]
[TimeControl "180+1"]
[EndTime "8:27:19 PST"]
[Termination "nikitadovbnya2008 won by resignation"]

1. e4 {[%clk 0:03:00.9]} 1... e5 {[%clk 0:02:53.1]} 2. Bc4 {[%clk 0:02:58.3]}
2... Nf6 {[%clk 0:02:51.4]} 3. d3 {[%clk 0:02:57.4]} 3... Bc5 {[%clk 0:02:46.9]}
4. Nf3 {[%clk 0:02:53]} 4... Nc6 {[%clk 0:02:45.3]} 5. O-O {[%clk 0:02:51.6]}
5... O-O {[%clk 0:02:44.3]} 6. c3 {[%clk 0:02:46.8]} 6... d6 {[%clk 0:02:44.5]}
7. Nbd2 {[%clk 0:02:43.4]} 7... a5 {[%clk 0:02:44.6]} 8. h3 {[%clk 0:02:41.6]}
8... Ba7 {[%clk 0:02:45]} 9. Re1 {[%clk 0:02:37.8]} 9... Ne7 {[%clk 0:02:45.5]}
10. Nf1 {[%clk 0:02:38.3]} 10... Ng6 {[%clk 0:02:46.4]} 11. Bb3 {[%clk
0:02:24.8]} 11... c6 {[%clk 0:02:46]} 12. Ng3 {[%clk 0:02:14.5]} 12... d5 {[%clk
0:02:39.3]} 13. exd5 {[%clk 0:02:15.4]} 13... Nxd5 {[%clk 0:02:36]} 14. d4
{[%clk 0:02:15.6]} 14... exd4 {[%clk 0:02:35.7]} 15. Nxd4 {[%clk 0:02:10.1]}
15... Be6 {[%clk 0:02:33.6]} 16. Bc2 {[%clk 0:02:01.6]} 16... Ndf4 {[%clk
0:02:24.1]} 17. Re4 {[%clk 0:01:55.7]} 17... Nd5 {[%clk 0:02:10.9]} 18. Qf3
{[%clk 0:01:49.7]} 18... Nf6 {[%clk 0:01:58.3]} 19. Nxe6 {[%clk 0:01:37.7]}
19... fxe6 {[%clk 0:01:49]} 20. Rxe6 {[%clk 0:01:38.6]} 20... Nd5 {[%clk
0:01:33.2]} 21. Nf5 {[%clk 0:01:28.2]} 21... Nh4 {[%clk 0:01:25.7]} 22. Qh5
{[%clk 0:01:15.4]} 22... Rxf5 {[%clk 0:00:43.4]} 23. Bxf5 {[%clk 0:01:11.3]}
23... g6 {[%clk 0:00:43.7]} 24. Bxg6 {[%clk 0:00:59.6]} 24... hxg6 {[%clk
0:00:44.6]} 25. Qg4 {[%clk 0:00:59.2]} 25... Kf7 {[%clk 0:00:22.2]} 26. Bg5
{[%clk 0:00:50.3]} 26... Qd7 {[%clk 0:00:21.9]} 27. Rae1 {[%clk 0:00:49.7]}
27... Nf5 {[%clk 0:00:20.5]} 28. c4 {[%clk 0:00:46]} 28... Nb4 {[%clk 0:00:15]}
29. Rf6+ {[%clk 0:00:44]} 29... Kg7 {[%clk 0:00:15.3]} 30. Ree6 {[%clk
0:00:33.9]} 1-0

[Event "Early-Titled-Tuesday-Blitz-February-06-2024"]
[Site "Chess.com"]
[Date "2024.02.06"]
[Round "3"]
[White "EmirhanTarlabasi"]
[Black "Raud100"]
[Result "1-0"]
[WhiteElo "2647"]
[BlackElo "2435"]
[TimeControl "180+1"]
[EndTime "8:27:19 PST"]
[Termination "EmirhanTarlabasi won by resignation"]

1. d4 {[%clk 0:03:00.9]} 1... d5 {[%clk 0:03:00.1]} 2. Nf3 {[%clk 0:03:01]} 2...
Nf6 {[%clk 0:02:59.5]} 3. Nbd2 {[%clk 0:03:01.3]} 3... c6 {[%clk 0:02:56.7]} 4.
e3 {[%clk 0:03:01.5]} 4... Bg4 {[%clk 0:02:56.9]} 5. Bd3 {[%clk 0:03:01.1]} 5...
e6 {[%clk 0:02:57]} 6. h3 {[%clk 0:03:01.7]} 6... Bh5 {[%clk 0:02:56.9]} 7. O-O
{[%clk 0:03:01.7]} 7... Bd6 {[%clk 0:02:56.4]} 8. g4 {[%clk 0:02:57.5]} 8... Bg6
{[%clk 0:02:56]} 9. Ne5 {[%clk 0:02:57.3]} 9... Bxd3 {[%clk 0:02:51.2]} 10. cxd3
{[%clk 0:02:52.8]} 10... Bxe5 {[%clk 0:02:37.3]} 11. dxe5 {[%clk 0:02:53]} 11...
Nfd7 {[%clk 0:02:38.2]} 12. d4 {[%clk 0:02:45.4]} 12... h5 {[%clk 0:02:31.9]}
13. Kg2 {[%clk 0:02:29.1]} 13... Na6 {[%clk 0:02:25.9]} 14. a3 {[%clk
0:02:26.2]} 14... hxg4 {[%clk 0:02:20.2]} 15. hxg4 {[%clk 0:02:22.7]} 15... Qe7
{[%clk 0:02:02.9]} 16. f4 {[%clk 0:02:13.4]} 16... O-O-O {[%clk 0:02:02]} 17.
Nf3 {[%clk 0:02:12.7]} 17... Rh7 {[%clk 0:01:47.8]} 18. Rh1 {[%clk 0:02:12.6]}
18... Rdh8 {[%clk 0:01:47.5]} 19. Rxh7 {[%clk 0:02:12.4]} 19... Rxh7 {[%clk
0:01:48.4]} 20. Bd2 {[%clk 0:02:06.9]} 20... Qf8 {[%clk 0:01:36.9]} 21. Qe1
{[%clk 0:01:31.6]} 21... f6 {[%clk 0:01:36.4]} 22. Qg3 {[%clk 0:01:31.3]} 22...
Qh8 {[%clk 0:01:32.8]} 23. Rf1 {[%clk 0:01:27.5]} 23... Nf8 {[%clk 0:01:24.6]}
24. f5 {[%clk 0:01:19.7]} 24... Nc7 {[%clk 0:01:22.6]} 25. Bb4 {[%clk
0:01:17.8]} 25... b6 {[%clk 0:01:06.6]} 26. Bxf8 {[%clk 0:01:05.4]} 26... Qxf8
{[%clk 0:01:05.5]} 27. Nh4 {[%clk 0:01:04.4]} 27... Kb7 {[%clk 0:00:46.4]} 28.
Ng6 {[%clk 0:01:03.8]} 28... Qf7 {[%clk 0:00:41.2]} 29. Qf4 {[%clk 0:00:51.5]}
29... a5 {[%clk 0:00:28.2]} 30. Rc1 {[%clk 0:00:46.2]} 30... Qd7 {[%clk
0:00:13.8]} 31. Nf8 {[%clk 0:00:45.2]} 31... g5 {[%clk 0:00:11.4]} 32. fxg6
{[%clk 0:00:39.4]} 32... fxe5 {[%clk 0:00:09.6]} 33. Nxd7 {[%clk 0:00:38.2]} 1-0

[Event "Early-Titled-Tuesday-Blitz-February-06-2024"]
[Site "Chess.com"]
[Date "2024.02.06"]
[Round "3"]
[White "chegueps"]
[Black "Eloist"]
[Result "1-0"]
[WhiteElo "2639"]
[BlackElo "2431"]
[TimeControl "180+1"]
[EndTime "8:27:19 PST"]
[Termination "chegueps won on time"]

1. d4 {[%clk 0:03:00.9]} 1... e6 {[%clk 0:02:59.8]} 2. Nc3 {[%clk 0:02:59.4]}
2... Nf6 {[%clk 0:02:58.7]} 3. e4 {[%clk 0:03:00.1]} 3... d5 {[%clk 0:02:58.7]}
4. e5 {[%clk 0:03:00.7]} 4... Nfd7 {[%clk 0:02:58.7]} 5. f4 {[%clk 0:03:01.5]}
5... c5 {[%clk 0:02:58.9]} 6. Nf3 {[%clk 0:03:02.1]} 6... Nc6 {[%clk 0:02:59.2]}
7. Be3 {[%clk 0:03:02.8]} 7... a6 {[%clk 0:02:59.4]} 8. Qd2 {[%clk 0:03:03.2]}
8... b5 {[%clk 0:02:59.5]} 9. a3 {[%clk 0:03:03.5]} 9... Qa5 {[%clk 0:02:58.2]}
10. dxc5 {[%clk 0:03:01.8]} 10... Bxc5 {[%clk 0:02:53.1]} 11. Nd4 {[%clk
0:02:32]} 11... Qb6 {[%clk 0:02:41.3]} 12. Rd1 {[%clk 0:02:27.5]} 12... O-O
{[%clk 0:02:31.7]} 13. Be2 {[%clk 0:02:19.8]} 13... f6 {[%clk 0:02:20.7]} 14.
exf6 {[%clk 0:02:16.2]} 14... Nxf6 {[%clk 0:02:19.3]} 15. O-O {[%clk 0:02:12.9]}
15... e5 {[%clk 0:02:09.6]} 16. fxe5 {[%clk 0:02:10.9]} 16... Nxe5 {[%clk
0:02:09.5]} 17. b4 {[%clk 0:02:08.4]} 17... Bxd4 {[%clk 0:01:50.3]} 18. Bxd4
{[%clk 0:02:09.3]} 18... Qd6 {[%clk 0:01:40.2]} 19. Qf4 {[%clk 0:02:07.6]} 19...
Re8 {[%clk 0:01:15.5]} 20. Rfe1 {[%clk 0:01:54.2]} 20... Bg4 {[%clk 0:00:40.8]}
21. h3 {[%clk 0:01:38.2]} 21... Nf3+ {[%clk 0:00:38.4]} 22. Qxf3 {[%clk
0:01:35.3]} 22... Bxf3 {[%clk 0:00:37.6]} 23. Bxf3 {[%clk 0:01:36.2]} 23...
Rxe1+ {[%clk 0:00:27.4]} 24. Rxe1 {[%clk 0:01:37.1]} 24... Rd8 {[%clk
0:00:15.6]} 25. Bc5 {[%clk 0:01:34.8]} 25... Qg3 {[%clk 0:00:14.5]} 26. Bf2
{[%clk 0:01:35]} 26... Qf4 {[%clk 0:00:13.5]} 27. Ne2 {[%clk 0:01:33.4]} 27...
Qc4 {[%clk 0:00:12.6]} 28. Nd4 {[%clk 0:01:33.6]} 28... Qc3 {[%clk 0:00:12.1]}
29. Re7 {[%clk 0:01:30.2]} 29... Qxa3 {[%clk 0:00:10.8]} 30. Ne6 {[%clk
0:01:29.6]} 30... Qxb4 {[%clk 0:00:09.6]} 31. Rxg7+ {[%clk 0:01:26.4]} 31... Kh8
{[%clk 0:00:09.8]} 32. Rf7 {[%clk 0:01:00.6]} 32... Ne4 {[%clk 0:00:04]} 33.
Bd4+ {[%clk 0:00:53.7]} 33... Kg8 {[%clk 0:00:03.1]} 34. Rg7+ {[%clk 0:00:53.3]}
34... Kh8 {[%clk 0:00:03.3]} 35. Rg4+ {[%clk 0:00:48.4]} 1-0

[Event "Early-Titled-Tuesday-Blitz-February-06-2024"]
[Site "Chess.com"]
[Date "2024.02.06"]
[Round "3"]
[White "wadsy27"]
[Black "Narek_Ghimoyan"]
[Result "1-0"]
[WhiteElo "2619"]
[BlackElo "2422"]
[TimeControl "180+1"]
[EndTime "8:27:19 PST"]
[Termination "wadsy27 won by resignation"]

1. e4 {[%clk 0:02:58.5]} 1... c5 {[%clk 0:02:59.4]} 2. Nf3 {[%clk 0:02:58.4]}
2... d6 {[%clk 0:02:59.9]} 3. g3 {[%clk 0:02:58.8]} 3... Nf6 {[%clk 0:02:59.2]}
4. d3 {[%clk 0:02:57]} 4... g6 {[%clk 0:02:58.4]} 5. Bg2 {[%clk 0:02:57.5]} 5...
Bg7 {[%clk 0:02:59.1]} 6. O-O {[%clk 0:02:58.1]} 6... O-O {[%clk 0:02:59.4]} 7.
Re1 {[%clk 0:02:54.1]} 7... Nc6 {[%clk 0:02:59.3]} 8. c3 {[%clk 0:02:49.9]} 8...
Bg4 {[%clk 0:02:51.5]} 9. h3 {[%clk 0:02:49.2]} 9... Bxf3 {[%clk 0:02:50.9]} 10.
Bxf3 {[%clk 0:02:49.8]} 10... Rb8 {[%clk 0:02:50.6]} 11. a4 {[%clk 0:02:49.9]}
11... a6 {[%clk 0:02:50.3]} 12. Bg2 {[%clk 0:02:40.1]} 12... b5 {[%clk
0:02:45.1]} 13. axb5 {[%clk 0:02:37.9]} 13... axb5 {[%clk 0:02:46]} 14. d4
{[%clk 0:02:34.6]} 14... cxd4 {[%clk 0:02:44.4]} 15. cxd4 {[%clk 0:02:35.5]}
15... e5 {[%clk 0:02:44.8]} 16. d5 {[%clk 0:02:28.8]} 16... Nd4 {[%clk
0:02:43.3]} 17. Be3 {[%clk 0:02:29.3]} 17... Nd7 {[%clk 0:02:42.4]} 18. Na3
{[%clk 0:02:23.8]} 18... Nc5 {[%clk 0:02:40]} 19. Nc2 {[%clk 0:02:19.9]} 19...
Ncb3 {[%clk 0:02:31.1]} 20. Nxd4 {[%clk 0:01:59.7]} 20... Nxd4 {[%clk
0:02:25.9]} 21. Qd3 {[%clk 0:01:49.3]} 21... b4 {[%clk 0:02:16.5]} 22. h4 {[%clk
0:01:44.9]} 22... h5 {[%clk 0:02:14.6]} 23. Rec1 {[%clk 0:01:41.2]} 23... b3
{[%clk 0:02:04.1]} 24. Bxd4 {[%clk 0:01:34]} 24... exd4 {[%clk 0:02:05]} 25. Bh3
{[%clk 0:01:28.4]} 25... Re8 {[%clk 0:02:04.2]} 26. Ra6 {[%clk 0:01:15.2]} 26...
Be5 {[%clk 0:02:00.2]} 27. Rac6 {[%clk 0:01:09.6]} 27... Qa5 {[%clk 0:01:58.5]}
28. Rc7 {[%clk 0:00:47.4]} 28... Qa2 {[%clk 0:01:53.2]} 29. Qf3 {[%clk
0:00:45.5]} 29... Rf8 {[%clk 0:01:52.6]} 30. Rxf7 {[%clk 0:00:45.6]} 30... Rxf7
{[%clk 0:01:45.7]} 31. Be6 {[%clk 0:00:44.5]} 31... Rf8 {[%clk 0:01:45.8]} 32.
Rc7 {[%clk 0:00:44.6]} 32... Kg7 {[%clk 0:00:54.6]} 33. Rxf7+ {[%clk 0:00:40.4]}
33... Rxf7 {[%clk 0:00:54.8]} 34. Qxf7+ {[%clk 0:00:36.1]} 34... Kh6 {[%clk
0:00:54.6]} 35. Bf5 {[%clk 0:00:31.4]} 35... gxf5 {[%clk 0:00:30.5]} 36. exf5
{[%clk 0:00:32.3]} 36... Qb1+ {[%clk 0:00:30.4]} 37. Kh2 {[%clk 0:00:32.3]}
37... Qxf5 {[%clk 0:00:29]} 38. Qxf5 {[%clk 0:00:31.2]} 1-0

[Event "Early-Titled-Tuesday-Blitz-February-06-2024"]
[Site "Chess.com"]
[Date "2024.02.06"]
[Round "3"]
[White "BigAl"]
[Black "CFN_Good_Evening"]
[Result "1-0"]
[WhiteElo "2528"]
[BlackElo "1987"]
[TimeControl "180+1"]
[EndTime "8:27:19 PST"]
[Termination "BigAl won on time"]

1. Nf3 {[%clk 0:03:00.9]} 1... Nf6 {[%clk 0:02:58.9]} 2. g3 {[%clk 0:03:01.5]}
2... e6 {[%clk 0:02:59]} 3. Bg2 {[%clk 0:03:02.4]} 3... d5 {[%clk 0:02:59.8]} 4.
O-O {[%clk 0:03:03.3]} 4... b5 {[%clk 0:03:00.5]} 5. d3 {[%clk 0:03:04.2]} 5...
c5 {[%clk 0:02:59.1]} 6. Nbd2 {[%clk 0:03:02.2]} 6... Be7 {[%clk 0:02:56.1]} 7.
a4 {[%clk 0:03:02.5]} 7... b4 {[%clk 0:02:55.3]} 8. e4 {[%clk 0:03:02.8]} 8...
O-O {[%clk 0:02:51.4]} 9. Re1 {[%clk 0:03:01.8]} 9... Bb7 {[%clk 0:02:51.3]} 10.
exd5 {[%clk 0:03:00.2]} 10... Bxd5 {[%clk 0:02:47.4]} 11. Nc4 {[%clk 0:02:59.5]}
11... Nc6 {[%clk 0:02:44.4]} 12. Ne3 {[%clk 0:02:58.2]} 12... Rc8 {[%clk
0:02:30.7]} 13. Nxd5 {[%clk 0:02:57.5]} 13... Nxd5 {[%clk 0:02:28.7]} 14. Nd2
{[%clk 0:02:45.6]} 14... Bf6 {[%clk 0:02:27.7]} 15. Nc4 {[%clk 0:02:38.4]} 15...
Nd4 {[%clk 0:02:21]} 16. Bd2 {[%clk 0:02:33.1]} 16... b3 {[%clk 0:02:12.5]} 17.
cxb3 {[%clk 0:02:31.8]} 17... Rb8 {[%clk 0:02:10]} 18. Ra3 {[%clk 0:02:20.5]}
18... Nb4 {[%clk 0:02:08.5]} 19. Bxb4 {[%clk 0:02:18.7]} 19... Rxb4 {[%clk
0:01:59.1]} 20. a5 {[%clk 0:02:04.1]} 20... Qb8 {[%clk 0:01:41]} 21. a6 {[%clk
0:01:47.4]} 21... Nxb3 {[%clk 0:01:32.1]} 22. Qh5 {[%clk 0:01:39.3]} 22... Rd8
{[%clk 0:00:49.9]} 23. h4 {[%clk 0:01:35.6]} 23... g6 {[%clk 0:00:46.6]} 24. Qf3
{[%clk 0:01:34.8]} 24... Bg7 {[%clk 0:00:41]} 25. h5 {[%clk 0:01:34.6]} 25...
Nd4 {[%clk 0:00:36.7]} 26. Qd1 {[%clk 0:01:34.7]} 26... Nb5 {[%clk 0:00:20.4]}
27. hxg6 {[%clk 0:01:26.3]} 27... hxg6 {[%clk 0:00:18.7]} 28. Ra4 {[%clk
0:01:18.7]} 28... Nd6 {[%clk 0:00:18]} 29. Na5 {[%clk 0:01:12.1]} 29... Rxa4
{[%clk 0:00:14]} 30. Qxa4 {[%clk 0:01:12.3]} 30... Qxb2 {[%clk 0:00:13.4]} 31.
Nc6 {[%clk 0:01:10.8]} 31... Re8 {[%clk 0:00:10.9]} 32. Nxa7 {[%clk 0:01:08.7]}
32... Qd2 {[%clk 0:00:08.4]} 33. Rf1 {[%clk 0:01:05]} 33... Qxd3 {[%clk
0:00:04]} 34. Rd1 {[%clk 0:01:04.8]} 34... Qc4 {[%clk 0:00:01.3]} 35. Qd7 {[%clk
0:00:55]} 1-0

[Event "Early-Titled-Tuesday-Blitz-February-06-2024"]
[Site "Chess.com"]
[Date "2024.02.06"]
[Round "3"]
[White "abelmat"]
[Black "SabinaFoisor"]
[Result "0-1"]
[WhiteElo "2076"]
[BlackElo "2371"]
[TimeControl "180+1"]
[EndTime "8:27:19 PST"]
[Termination "SabinaFoisor won by checkmate"]

1. d4 {[%clk 0:03:00.9]} 1... d5 {[%clk 0:02:59.7]} 2. c4 {[%clk 0:03:00.9]}
2... c6 {[%clk 0:02:58.3]} 3. Nf3 {[%clk 0:03:01.3]} 3... Nf6 {[%clk 0:02:58.2]}
4. Nc3 {[%clk 0:03:01.7]} 4... a6 {[%clk 0:02:57.2]} 5. e3 {[%clk 0:03:01.4]}
5... b5 {[%clk 0:02:57]} 6. cxd5 {[%clk 0:02:59.2]} 6... cxd5 {[%clk 0:02:57]}
7. Bd3 {[%clk 0:02:59.6]} 7... Bg4 {[%clk 0:02:53.2]} 8. O-O {[%clk 0:02:59.4]}
8... e6 {[%clk 0:02:52.9]} 9. Be2 {[%clk 0:02:59.2]} 9... Be7 {[%clk 0:02:49.2]}
10. h3 {[%clk 0:02:59.4]} 10... Bh5 {[%clk 0:02:49]} 11. Ne5 {[%clk 0:02:59.6]}
11... Bxe2 {[%clk 0:02:48.2]} 12. Nxe2 {[%clk 0:03:00]} 12... O-O {[%clk
0:02:46.4]} 13. Bd2 {[%clk 0:03:00.1]} 13... Nbd7 {[%clk 0:02:37.5]} 14. Nc6
{[%clk 0:02:59.6]} 14... Qe8 {[%clk 0:02:37.6]} 15. Qb3 {[%clk 0:02:46.7]} 15...
Bd6 {[%clk 0:02:27.6]} 16. Rac1 {[%clk 0:02:37.7]} 16... Ne4 {[%clk 0:02:25.8]}
17. Bb4 {[%clk 0:02:27.2]} 17... Bxb4 {[%clk 0:02:23.1]} 18. Qxb4 {[%clk
0:02:25.5]} 18... f5 {[%clk 0:02:20.8]} 19. Rc2 {[%clk 0:02:10]} 19... Kh8
{[%clk 0:02:02]} 20. Rfc1 {[%clk 0:02:08.6]} 20... g5 {[%clk 0:01:59.7]} 21. Ne5
{[%clk 0:02:04.3]} 21... Nxe5 {[%clk 0:01:57.7]} 22. dxe5 {[%clk 0:02:03.8]}
22... g4 {[%clk 0:01:57.4]} 23. hxg4 {[%clk 0:01:58]} 23... fxg4 {[%clk
0:01:58.3]} 24. Nf4 {[%clk 0:01:56.2]} 24... g3 {[%clk 0:01:48.3]} 25. Rc7
{[%clk 0:01:31.6]} 25... gxf2+ {[%clk 0:01:34.1]} 26. Kf1 {[%clk 0:01:30.1]}
26... Rf7 {[%clk 0:01:07.4]} 27. Rxf7 {[%clk 0:00:55.5]} 27... Qxf7 {[%clk
0:01:08.3]} 28. Rc6 {[%clk 0:00:55.9]} 28... Re8 {[%clk 0:00:54]} 29. a4 {[%clk
0:00:32.4]} 29... Qg7 {[%clk 0:00:53.2]} 30. Qd4 {[%clk 0:00:26]} 30... Qg3
{[%clk 0:00:43.4]} 31. Rxe6 {[%clk 0:00:16.7]} 31... Rxe6 {[%clk 0:00:41.7]} 32.
Nxe6 {[%clk 0:00:15.8]} 32... Qh2 {[%clk 0:00:41.9]} 33. Nf4 {[%clk 0:00:12.2]}
33... Qg1+ {[%clk 0:00:40.1]} 34. Ke2 {[%clk 0:00:12.5]} 34... f1=Q# {[%clk
0:00:41]} 0-1

[Event "Early-Titled-Tuesday-Blitz-February-06-2024"]
[Site "Chess.com"]
[Date "2024.02.06"]
[Round "3"]
[White "Som2310"]
[Black "IsaqueGoncalvesSanto"]
[Result "1-0"]
[WhiteElo "2783"]
[BlackElo "1852"]
[TimeControl "180+1"]
[EndTime "8:27:20 PST"]
[Termination "Som2310 won on time"]

1. e4 {[%clk 0:02:39.4]} 1... e6 {[%clk 0:02:59.4]} 2. d4 {[%clk 0:02:38.9]}
2... d5 {[%clk 0:02:59.5]} 3. Bd3 {[%clk 0:02:39.2]} 3... Nc6 {[%clk 0:02:58.5]}
4. c3 {[%clk 0:02:37.2]} 4... e5 {[%clk 0:02:56.1]} 5. Nf3 {[%clk 0:02:32.4]}
5... exd4 {[%clk 0:02:53]} 6. cxd4 {[%clk 0:02:31.2]} 6... dxe4 {[%clk
0:02:49.9]} 7. Bxe4 {[%clk 0:02:30.8]} 7... Bb4+ {[%clk 0:02:36.3]} 8. Nc3
{[%clk 0:02:30]} 8... Nf6 {[%clk 0:02:35.7]} 9. Bxc6+ {[%clk 0:02:29.3]} 9...
bxc6 {[%clk 0:02:35.5]} 10. O-O {[%clk 0:02:29.2]} 10... O-O {[%clk 0:02:35.2]}
11. Bg5 {[%clk 0:02:29.2]} 11... h6 {[%clk 0:02:20.1]} 12. Bh4 {[%clk
0:02:28.5]} 12... Bf5 {[%clk 0:02:19]} 13. Qa4 {[%clk 0:02:24.2]} 13... Bd6
{[%clk 0:02:00.1]} 14. Qxc6 {[%clk 0:02:20.4]} 14... Rb8 {[%clk 0:01:59.8]} 15.
b3 {[%clk 0:02:18.8]} 15... Rb6 {[%clk 0:01:58.5]} 16. Qc4 {[%clk 0:02:17.4]}
16... Rb4 {[%clk 0:01:48.9]} 17. Qa6 {[%clk 0:02:17.1]} 17... g5 {[%clk
0:01:28.9]} 18. Bg3 {[%clk 0:02:14.4]} 18... Bxg3 {[%clk 0:01:27.4]} 19. hxg3
{[%clk 0:02:13.6]} 19... g4 {[%clk 0:01:27.7]} 20. Nh4 {[%clk 0:02:13.6]} 20...
Bc8 {[%clk 0:01:11.4]} 21. Qxa7 {[%clk 0:02:13.2]} 21... Rxd4 {[%clk 0:01:10.8]}
22. Nb5 {[%clk 0:02:03.8]} 22... Rd5 {[%clk 0:00:55.9]} 23. Nc3 {[%clk
0:02:00.1]} 23... Rd3 {[%clk 0:00:34.8]} 24. Rad1 {[%clk 0:01:58.5]} 24... Re8
{[%clk 0:00:24.4]} 25. Qc5 {[%clk 0:01:53]} 25... Rxd1 {[%clk 0:00:21]} 26. Rxd1
{[%clk 0:01:52.6]} 26... Qe7 {[%clk 0:00:21]} 27. Qd4 {[%clk 0:01:49.9]} 27...
Qe5 {[%clk 0:00:18.2]} 28. Kh2 {[%clk 0:01:43.3]} 28... Bb7 {[%clk 0:00:15.1]}
29. Qxe5 {[%clk 0:01:37.5]} 29... Rxe5 {[%clk 0:00:15]} 30. Rd4 {[%clk
0:01:37.2]} 30... Rc5 {[%clk 0:00:13.2]} 31. Rc4 {[%clk 0:01:34]} 31... Rxc4
{[%clk 0:00:10.2]} 32. bxc4 {[%clk 0:01:34.2]} 32... Bc8 {[%clk 0:00:10.6]} 33.
Nb5 {[%clk 0:01:33.5]} 33... c6 {[%clk 0:00:10]} 34. Nd6 {[%clk 0:01:33.3]}
34... Bd7 {[%clk 0:00:09.6]} 35. Nhf5 {[%clk 0:01:33]} 35... Kf8 {[%clk
0:00:08.4]} 36. Nxh6 {[%clk 0:01:32.2]} 36... Ke7 {[%clk 0:00:08.1]} 37. c5
{[%clk 0:01:29.8]} 37... Nd5 {[%clk 0:00:06.8]} 38. a4 {[%clk 0:01:27.6]} 38...
Nb4 {[%clk 0:00:06.1]} 39. a5 {[%clk 0:01:24.5]} 39... Na6 {[%clk 0:00:06.3]}
40. Nhf5+ {[%clk 0:01:20]} 40... Kf6 {[%clk 0:00:05]} 41. Ne3 {[%clk 0:01:11.2]}
41... Nxc5 {[%clk 0:00:04.9]} 42. Ndc4 {[%clk 0:01:11.4]} 42... Na6 {[%clk
0:00:04.3]} 43. f3 {[%clk 0:01:10.7]} 43... gxf3 {[%clk 0:00:03.4]} 44. gxf3
{[%clk 0:01:11]} 44... Be6 {[%clk 0:00:02.2]} 45. g4 {[%clk 0:01:09.4]} 1-0

[Event "Early-Titled-Tuesday-Blitz-February-06-2024"]
[Site "Chess.com"]
[Date "2024.02.06"]
[Round "3"]
[White "carloseduar100"]
[Black "maurovargas01"]
[Result "1-0"]
[WhiteElo "2314"]
[BlackElo "1879"]
[TimeControl "180+1"]
[EndTime "8:27:21 PST"]
[Termination "carloseduar100 won on time"]

1. d4 {[%clk 0:02:57.5]} 1... d5 {[%clk 0:02:54]} 2. c3 {[%clk 0:02:56.6]} 2...
Nf6 {[%clk 0:02:51.2]} 3. Bg5 {[%clk 0:02:55.6]} 3... Ne4 {[%clk 0:02:50]} 4. h4
{[%clk 0:02:54.4]} 4... Nxg5 {[%clk 0:02:48.8]} 5. hxg5 {[%clk 0:02:54.4]} 5...
e6 {[%clk 0:02:48.4]} 6. Nf3 {[%clk 0:02:53.8]} 6... Be7 {[%clk 0:02:34.2]} 7.
Qd3 {[%clk 0:02:47.8]} 7... g6 {[%clk 0:02:31.3]} 8. Qd2 {[%clk 0:02:23.3]} 8...
Bd7 {[%clk 0:01:51]} 9. Na3 {[%clk 0:02:20.9]} 9... Nc6 {[%clk 0:01:44.6]} 10.
Nc2 {[%clk 0:02:20.6]} 10... Bd6 {[%clk 0:01:37.4]} 11. e3 {[%clk 0:02:00.7]}
11... Be7 {[%clk 0:01:31.7]} 12. Bd3 {[%clk 0:02:00.8]} 12... Bxg5 {[%clk
0:01:26.4]} 13. Nxg5 {[%clk 0:02:01.4]} 13... Qxg5 {[%clk 0:01:26]} 14. O-O-O
{[%clk 0:01:42]} 14... Qxg2 {[%clk 0:01:10.5]} 15. Rdg1 {[%clk 0:01:41.6]} 15...
Qf3 {[%clk 0:01:08.3]} 16. Rh4 {[%clk 0:01:35.4]} 16... Qf6 {[%clk 0:01:01.1]}
17. Rgh1 {[%clk 0:01:04.3]} 17... h5 {[%clk 0:00:51.9]} 18. Rf4 {[%clk
0:01:04.4]} 18... Qe7 {[%clk 0:00:47.6]} 19. e4 {[%clk 0:00:43.8]} 19... dxe4
{[%clk 0:00:35.5]} 20. Rxe4 {[%clk 0:00:42.5]} 20... O-O-O {[%clk 0:00:33.4]}
21. Ne3 {[%clk 0:00:42.5]} 21... Qf6 {[%clk 0:00:14.3]} 22. Nc4 {[%clk
0:00:32.7]} 22... Ne7 {[%clk 0:00:11.2]} 23. Ne5 {[%clk 0:00:29.6]} 1-0